[Event "Late-Titled-Tuesday-Blitz-June-25-2024"]
[Site "Chess.com"]
[Date "2024.06.25"]
[Round "8"]
[White "Flaccidmoves"]
[Black "Veleamater"]
[Result "1-0"]
[WhiteElo "2525"]
[BlackElo "2397"]
[TimeControl "180+1"]
[EndTime "15:26:22 PDT"]
[Termination "Flaccidmoves won on time"]

1. c4 {[%clk 0:03:00.9]} 1... d6 {[%clk 0:03:00.9]} 2. g3 {[%clk 0:02:59.4]}
2... g6 {[%clk 0:03:01.7]} 3. Bg2 {[%clk 0:02:59.9]} 3... Bg7 {[%clk 0:03:02.2]}
4. Nf3 {[%clk 0:02:59.1]} 4... Nf6 {[%clk 0:03:02.6]} 5. O-O {[%clk 0:02:59.4]}
5... O-O {[%clk 0:03:01.6]} 6. Nc3 {[%clk 0:02:59.3]} 6... Nc6 {[%clk
0:03:01.8]} 7. Rb1 {[%clk 0:02:58.7]} 7... h6 {[%clk 0:03:02.1]} 8. b4 {[%clk
0:02:58.2]} 8... e5 {[%clk 0:03:02.3]} 9. b5 {[%clk 0:02:57.7]} 9... Nd4 {[%clk
0:03:02.1]} 10. Nxd4 {[%clk 0:02:48.6]} 10... exd4 {[%clk 0:03:02.1]} 11. Nd5
{[%clk 0:02:48.9]} 11... Nd7 {[%clk 0:02:59.2]} 12. a4 {[%clk 0:02:40.3]} 12...
Nc5 {[%clk 0:02:58.4]} 13. d3 {[%clk 0:02:35.7]} 13... Re8 {[%clk 0:02:54.3]}
14. a5 {[%clk 0:02:34.1]} 14... Bg4 {[%clk 0:02:52.6]} 15. Re1 {[%clk
0:02:28.5]} 15... Qd7 {[%clk 0:02:43.1]} 16. a6 {[%clk 0:02:25]} 16... bxa6
{[%clk 0:02:38]} 17. bxa6 {[%clk 0:02:24]} 17... Rab8 {[%clk 0:02:37.7]} 18.
Rxb8 {[%clk 0:02:15.9]} 18... Rxb8 {[%clk 0:02:36.7]} 19. Ba3 {[%clk 0:02:16.1]}
19... Na4 {[%clk 0:02:25.4]} 20. h3 {[%clk 0:02:10.1]} 20... Be6 {[%clk
0:02:18.4]} 21. Nf4 {[%clk 0:02:03.8]} 21... Nc3 {[%clk 0:02:14.7]} 22. Qc2
{[%clk 0:02:04.2]} 22... c5 {[%clk 0:02:02.2]} 23. Nxe6 {[%clk 0:01:56.9]} 23...
fxe6 {[%clk 0:02:00.3]} 24. e3 {[%clk 0:01:52]} 24... e5 {[%clk 0:01:50.5]} 25.
exd4 {[%clk 0:01:49.8]} 25... exd4 {[%clk 0:01:46.2]} 26. Bc1 {[%clk 0:01:36.2]}
26... Re8 {[%clk 0:01:38.3]} 27. Rxe8+ {[%clk 0:01:27.2]} 27... Qxe8 {[%clk
0:01:36.9]} 28. Bf4 {[%clk 0:01:26.8]} 28... Ne2+ {[%clk 0:01:27.6]} 29. Kh1
{[%clk 0:01:21.9]} 29... Nxf4 {[%clk 0:01:26.5]} 30. gxf4 {[%clk 0:01:22.7]}
30... Qe1+ {[%clk 0:01:21.9]} 31. Kh2 {[%clk 0:01:22]} 31... Kh7 {[%clk
0:01:20.6]} 32. Be4 {[%clk 0:01:15.3]} 32... h5 {[%clk 0:01:18.8]} 33. f5 {[%clk
0:01:10.3]} 33... Be5+ {[%clk 0:01:16.4]} 34. Kg2 {[%clk 0:01:09.4]} 34... gxf5
{[%clk 0:01:16.1]} 35. Bxf5+ {[%clk 0:01:09.1]} 35... Kh6 {[%clk 0:01:16]} 36.
Qb2 {[%clk 0:01:04.8]} 36... Kg5 {[%clk 0:01:05.2]} 37. Be4 {[%clk 0:00:59.9]}
37... Bf6 {[%clk 0:00:42.9]} 38. Qb8 {[%clk 0:00:56.5]} 1-0

[Event "Late-Titled-Tuesday-Blitz-June-25-2024"]
[Site "Chess.com"]
[Date "2024.06.25"]
[Round "8"]
[White "NikitaShnadrygin"]
[Black "VD_coach"]
[Result "1-0"]
[WhiteElo "2753"]
[BlackElo "2573"]
[TimeControl "180+1"]
[EndTime "15:26:28 PDT"]
[Termination "NikitaShnadrygin won by resignation"]

1. e4 {[%clk 0:03:00.9]} 1... c5 {[%clk 0:02:39.8]} 2. Nf3 {[%clk 0:02:58.9]}
2... d6 {[%clk 0:02:39.6]} 3. d4 {[%clk 0:02:59.4]} 3... cxd4 {[%clk 0:02:39.7]}
4. Nxd4 {[%clk 0:03:00.3]} 4... Nf6 {[%clk 0:02:40.1]} 5. Nc3 {[%clk 0:03:00.7]}
5... g6 {[%clk 0:02:40.7]} 6. f3 {[%clk 0:03:00.2]} 6... Bg7 {[%clk 0:02:40.9]}
7. Be3 {[%clk 0:03:00.7]} 7... Nc6 {[%clk 0:02:41]} 8. Qd2 {[%clk 0:03:01]} 8...
O-O {[%clk 0:02:41.3]} 9. g4 {[%clk 0:03:01.2]} 9... Be6 {[%clk 0:02:39.6]} 10.
O-O-O {[%clk 0:03:00.7]} 10... Nxd4 {[%clk 0:02:35.3]} 11. Bxd4 {[%clk
0:03:00.6]} 11... Qa5 {[%clk 0:02:34.6]} 12. Kb1 {[%clk 0:03:00.3]} 12... Rfc8
{[%clk 0:02:34.6]} 13. a3 {[%clk 0:03:00.1]} 13... Rab8 {[%clk 0:02:34.4]} 14.
Ne2 {[%clk 0:02:08.2]} 14... Qxd2 {[%clk 0:02:25]} 15. Rxd2 {[%clk 0:02:09.1]}
15... b6 {[%clk 0:02:18]} 16. Nc3 {[%clk 0:02:03.6]} 16... Bc4 {[%clk
0:02:17.7]} 17. Bxc4 {[%clk 0:01:52.7]} 17... Rxc4 {[%clk 0:02:18.6]} 18. Rhd1
{[%clk 0:01:51.8]} 18... Rbc8 {[%clk 0:02:04.3]} 19. Nb5 {[%clk 0:01:44.5]}
19... a6 {[%clk 0:02:01.4]} 20. b3 {[%clk 0:01:45.1]} 20... axb5 {[%clk
0:01:51.5]} 21. bxc4 {[%clk 0:01:45.3]} 21... bxc4 {[%clk 0:01:50.8]} 22. Ka2
{[%clk 0:01:44.6]} 22... Nd7 {[%clk 0:01:48.6]} 23. Bxg7 {[%clk 0:01:43.4]}
23... Kxg7 {[%clk 0:01:49.5]} 24. Rb1 {[%clk 0:01:41.2]} 24... Kf6 {[%clk
0:01:43.6]} 25. Rd5 {[%clk 0:01:34.2]} 25... h6 {[%clk 0:01:37.7]} 26. f4 {[%clk
0:01:33.4]} 26... Ke6 {[%clk 0:01:30]} 27. Rdb5 {[%clk 0:01:28.2]} 27... f6
{[%clk 0:01:25.3]} 28. h4 {[%clk 0:01:26.5]} 28... Rg8 {[%clk 0:01:11.7]} 29.
R1b4 {[%clk 0:01:14.1]} 29... Rc8 {[%clk 0:01:09.3]} 30. Ra4 {[%clk 0:01:14]}
30... Nc5 {[%clk 0:01:05.5]} 31. Rxc4 {[%clk 0:01:13.8]} 31... Rb8 {[%clk
0:00:46.5]} 32. Rcb4 {[%clk 0:01:04.3]} 32... Nd7 {[%clk 0:00:46.3]} 33. Rc4
{[%clk 0:00:56.9]} 33... Rb7 {[%clk 0:00:44.4]} 34. Kb3 {[%clk 0:00:37.8]} 34...
Nc5+ {[%clk 0:00:43.9]} 35. Kc3 {[%clk 0:00:37.5]} 35... d5 {[%clk 0:00:40.5]}
36. exd5+ {[%clk 0:00:37.8]} 36... Kxd5 {[%clk 0:00:37.3]} 37. Rcxc5+ {[%clk
0:00:38.7]} 1-0

[Event "Late-Titled-Tuesday-Blitz-June-25-2024"]
[Site "Chess.com"]
[Date "2024.06.25"]
[Round "8"]
[White "chesspilot01"]
[Black "Eloist"]
[Result "1-0"]
[WhiteElo "2350"]
[BlackElo "2447"]
[TimeControl "180+1"]
[EndTime "15:26:32 PDT"]
[Termination "chesspilot01 won on time"]

1. e4 {[%clk 0:03:00.9]} 1... e6 {[%clk 0:02:59.8]} 2. Qe2 {[%clk 0:02:58.4]}
2... c5 {[%clk 0:02:54.8]} 3. Nf3 {[%clk 0:02:57.9]} 3... Nc6 {[%clk 0:02:54.9]}
4. g3 {[%clk 0:02:58.2]} 4... g6 {[%clk 0:02:54]} 5. Bg2 {[%clk 0:02:58.5]} 5...
Bg7 {[%clk 0:02:54.2]} 6. O-O {[%clk 0:02:59.1]} 6... Nge7 {[%clk 0:02:52.8]} 7.
c3 {[%clk 0:02:54]} 7... e5 {[%clk 0:02:51.8]} 8. Na3 {[%clk 0:02:52.7]} 8...
O-O {[%clk 0:02:50.6]} 9. Nc2 {[%clk 0:02:52.4]} 9... d5 {[%clk 0:02:49.9]} 10.
exd5 {[%clk 0:02:52.2]} 10... Nxd5 {[%clk 0:02:49.9]} 11. Qc4 {[%clk 0:02:50.3]}
11... Bf5 {[%clk 0:02:36.8]} 12. Nfe1 {[%clk 0:02:43.9]} 12... Nb6 {[%clk
0:02:21.3]} 13. Qxc5 {[%clk 0:02:42]} 13... Re8 {[%clk 0:02:11.8]} 14. Nb4
{[%clk 0:02:16.8]} 14... Nxb4 {[%clk 0:02:04.5]} 15. Qxb4 {[%clk 0:02:15.7]}
15... Qd7 {[%clk 0:01:45.8]} 16. a4 {[%clk 0:02:05.3]} 16... Rac8 {[%clk
0:01:26.7]} 17. a5 {[%clk 0:01:59.9]} 17... Nd5 {[%clk 0:01:22.1]} 18. Qb3
{[%clk 0:01:48.8]} 18... Be6 {[%clk 0:01:21.2]} 19. c4 {[%clk 0:01:40.2]} 19...
Nc7 {[%clk 0:01:02.6]} 20. d3 {[%clk 0:01:35.5]} 20... Na6 {[%clk 0:00:25.7]}
21. Qxb7 {[%clk 0:01:32.5]} 21... Nc5 {[%clk 0:00:18.5]} 22. Qxd7 {[%clk
0:01:30.4]} 22... Bxd7 {[%clk 0:00:18.7]} 23. Be3 {[%clk 0:01:06.7]} 23... Nb3
{[%clk 0:00:11.8]} 24. Ra3 {[%clk 0:01:06.1]} 24... Nd4 {[%clk 0:00:09.3]} 25.
b4 {[%clk 0:00:56.2]} 25... Bf8 {[%clk 0:00:08.4]} 26. Bxd4 {[%clk 0:00:34.4]}
26... exd4 {[%clk 0:00:08.1]} 27. Rb3 {[%clk 0:00:29.7]} 27... Rb8 {[%clk
0:00:05.2]} 28. Nf3 {[%clk 0:00:20.3]} 1-0

[Event "Late-Titled-Tuesday-Blitz-June-25-2024"]
[Site "Chess.com"]
[Date "2024.06.25"]
[Round "8"]
[White "Aswathchess"]
[Black "rdarruda"]
[Result "0-1"]
[WhiteElo "2752"]
[BlackElo "2572"]
[TimeControl "180+1"]
[EndTime "15:26:33 PDT"]
[Termination "rdarruda won by resignation"]

1. b3 {[%clk 0:03:00.9]} 1... e5 {[%clk 0:02:58.9]} 2. Bb2 {[%clk 0:03:00.4]}
2... d6 {[%clk 0:02:59.8]} 3. e3 {[%clk 0:02:59.5]} 3... Nf6 {[%clk 0:03:00]} 4.
d4 {[%clk 0:02:59.1]} 4... Nc6 {[%clk 0:02:58.5]} 5. dxe5 {[%clk 0:02:56.9]}
5... Nxe5 {[%clk 0:02:58.5]} 6. Nf3 {[%clk 0:02:56.6]} 6... Nxf3+ {[%clk
0:02:54.1]} 7. gxf3 {[%clk 0:02:57.5]} 7... g6 {[%clk 0:02:52]} 8. Nc3 {[%clk
0:02:47.1]} 8... Bg7 {[%clk 0:02:51.6]} 9. Qd2 {[%clk 0:02:47.1]} 9... O-O
{[%clk 0:02:51.1]} 10. O-O-O {[%clk 0:02:47.7]} 10... Be6 {[%clk 0:02:47.2]} 11.
h4 {[%clk 0:02:45]} 11... Qb8 {[%clk 0:02:34.3]} 12. Ne4 {[%clk 0:02:42.7]}
12... Nxe4 {[%clk 0:02:32.8]} 13. fxe4 {[%clk 0:02:43.6]} 13... h5 {[%clk
0:02:25.4]} 14. Bxg7 {[%clk 0:02:42.1]} 14... Kxg7 {[%clk 0:02:25.1]} 15. f4
{[%clk 0:02:42.7]} 15... Bg4 {[%clk 0:02:24.6]} 16. Be2 {[%clk 0:02:41.1]} 16...
Bxe2 {[%clk 0:02:19.4]} 17. Qxe2 {[%clk 0:02:42]} 17... Qe8 {[%clk 0:02:18.7]}
18. Qf3 {[%clk 0:02:40.8]} 18... a5 {[%clk 0:02:11.2]} 19. Rhg1 {[%clk
0:02:30.1]} 19... Rh8 {[%clk 0:02:03.2]} 20. Rd5 {[%clk 0:02:25.6]} 20... Qe7
{[%clk 0:01:58.2]} 21. Rdg5 {[%clk 0:02:24.2]} 21... a4 {[%clk 0:01:49.8]} 22.
f5 {[%clk 0:02:22.5]} 22... axb3 {[%clk 0:01:49.6]} 23. fxg6 {[%clk 0:02:19.6]}
23... f6 {[%clk 0:01:49.4]} 24. Rxh5 {[%clk 0:01:48.1]} 24... bxa2 {[%clk
0:01:32.1]} 25. Rh7+ {[%clk 0:01:46.2]} 25... Kg8 {[%clk 0:01:31.7]} 26. Kd2
{[%clk 0:01:18.9]} 26... Qe5 {[%clk 0:01:15.2]} 27. Rxh8+ {[%clk 0:00:42.2]}
27... Kxh8 {[%clk 0:01:16.1]} 28. Rg5 {[%clk 0:00:42.2]} 28... Qh2+ {[%clk
0:01:02]} 29. Rg2 {[%clk 0:00:24.2]} 29... Qxg2+ {[%clk 0:01:01.5]} 30. Qxg2
{[%clk 0:00:25.1]} 30... a1=Q {[%clk 0:01:00.7]} 31. Qf3 {[%clk 0:00:20.5]}
31... Qe5 {[%clk 0:00:57.6]} 32. h5 {[%clk 0:00:19.1]} 32... Kg7 {[%clk
0:00:56]} 33. Qg4 {[%clk 0:00:17.4]} 33... Rd8 {[%clk 0:00:51.5]} 34. Ke2 {[%clk
0:00:14.9]} 34... Re8 {[%clk 0:00:47.2]} 35. Qd7+ {[%clk 0:00:11.7]} 35... Re7
{[%clk 0:00:47.5]} 36. Qd8 {[%clk 0:00:10]} 36... Qxe4 {[%clk 0:00:42.8]} 37.
h6+ {[%clk 0:00:09.8]} 37... Kxh6 {[%clk 0:00:42.8]} 38. Qh8+ {[%clk 0:00:10]}
38... Kxg6 {[%clk 0:00:43.2]} 39. Qg8+ {[%clk 0:00:09.9]} 39... Rg7 {[%clk
0:00:42.9]} 40. Qc8 {[%clk 0:00:07.3]} 40... Qxc2+ {[%clk 0:00:42.2]} 41. Kf3
{[%clk 0:00:07]} 41... Qf5+ {[%clk 0:00:41]} 0-1

[Event "Late-Titled-Tuesday-Blitz-June-25-2024"]
[Site "Chess.com"]
[Date "2024.06.25"]
[Round "8"]
[White "GlavkonVVS"]
[Black "esskeettit"]
[Result "1-0"]
[WhiteElo "2639"]
[BlackElo "2494"]
[TimeControl "180+1"]
[EndTime "15:26:34 PDT"]
[Termination "GlavkonVVS won on time"]

1. c4 {[%clk 0:03:00.9]} 1... c5 {[%clk 0:03:00]} 2. Nc3 {[%clk 0:03:00.9]} 2...
Nc6 {[%clk 0:03:00.3]} 3. g3 {[%clk 0:03:01]} 3... g6 {[%clk 0:03:00.9]} 4. Bg2
{[%clk 0:03:01.5]} 4... Bg7 {[%clk 0:03:01.4]} 5. Nf3 {[%clk 0:03:02]} 5... e5
{[%clk 0:03:01.5]} 6. O-O {[%clk 0:03:02]} 6... d6 {[%clk 0:03:02.1]} 7. d3
{[%clk 0:03:02.5]} 7... Nge7 {[%clk 0:03:01.4]} 8. a3 {[%clk 0:03:02.9]} 8... a5
{[%clk 0:03:00.8]} 9. Rb1 {[%clk 0:03:03]} 9... O-O {[%clk 0:03:00.9]} 10. Ne1
{[%clk 0:03:03.2]} 10... Be6 {[%clk 0:02:59.9]} 11. Nc2 {[%clk 0:03:02.9]} 11...
d5 {[%clk 0:03:00.3]} 12. b3 {[%clk 0:03:02.7]} 12... d4 {[%clk 0:02:51.5]} 13.
Nb5 {[%clk 0:03:01.4]} 13... f5 {[%clk 0:02:40.3]} 14. b4 {[%clk 0:03:00.7]}
14... cxb4 {[%clk 0:01:56.5]} 15. axb4 {[%clk 0:02:59.9]} 15... a4 {[%clk
0:01:56.3]} 16. c5 {[%clk 0:02:45.3]} 16... Bd5 {[%clk 0:01:46.9]} 17. Nd6
{[%clk 0:02:40.9]} 17... Bxg2 {[%clk 0:01:46.4]} 18. Kxg2 {[%clk 0:02:40.9]}
18... Nd5 {[%clk 0:01:43.8]} 19. Bd2 {[%clk 0:02:40.9]} 19... Qd7 {[%clk
0:01:39]} 20. Na3 {[%clk 0:02:36.4]} 20... Kh8 {[%clk 0:01:38.2]} 21. b5 {[%clk
0:02:30.5]} 21... Nce7 {[%clk 0:01:37.8]} 22. Nac4 {[%clk 0:02:29.6]} 22... f4
{[%clk 0:01:32]} 23. Ra1 {[%clk 0:02:26]} 23... b6 {[%clk 0:01:17.2]} 24. c6
{[%clk 0:02:22.5]} 24... Qe6 {[%clk 0:01:11.9]} 25. Rxa4 {[%clk 0:02:19.8]}
25... Rad8 {[%clk 0:01:12.1]} 26. Ne4 {[%clk 0:02:17.3]} 26... Nf5 {[%clk
0:01:07.3]} 27. Ra7 {[%clk 0:02:12.8]} 27... h6 {[%clk 0:00:47.3]} 28. Kh1
{[%clk 0:01:59.5]} 28... g5 {[%clk 0:00:40.7]} 29. gxf4 {[%clk 0:01:56.2]} 29...
exf4 {[%clk 0:00:39]} 30. Rg1 {[%clk 0:01:51.4]} 30... Nh4 {[%clk 0:00:36]} 31.
f3 {[%clk 0:01:44.4]} 31... Nf5 {[%clk 0:00:21.8]} 32. Qf1 {[%clk 0:01:39.3]}
32... Nfe7 {[%clk 0:00:18.9]} 33. Qg2 {[%clk 0:01:33.6]} 33... Ng6 {[%clk
0:00:19]} 34. Rb7 {[%clk 0:01:25.8]} 34... Nh4 {[%clk 0:00:16.3]} 35. Qg4 {[%clk
0:01:25.8]} 35... Qxg4 {[%clk 0:00:05.4]} 36. Rxg4 {[%clk 0:01:24.9]} 36... Rb8
{[%clk 0:00:06]} 37. Rxb8 {[%clk 0:01:21.5]} 37... Rxb8 {[%clk 0:00:06.9]} 38.
Ned6 {[%clk 0:01:19.2]} 38... Bf8 {[%clk 0:00:04.3]} 39. Rg1 {[%clk 0:01:15.1]}
39... Ng6 {[%clk 0:00:01.5]} 40. Ra1 {[%clk 0:01:14.4]} 40... Bxd6 {[%clk
0:00:01.8]} 41. Nxd6 {[%clk 0:01:13.8]} 41... Ne5 {[%clk 0:00:02.7]} 42. Ra4
{[%clk 0:01:11.8]} 42... Kg7 {[%clk 0:00:01.5]} 43. Rxd4 {[%clk 0:01:11.6]}
43... Ne7 {[%clk 0:00:01.9]} 44. Bc3 {[%clk 0:01:10.1]} 44... Kf8 {[%clk
0:00:01.5]} 45. Re4 {[%clk 0:01:09.6]} 45... N5xc6 {[%clk 0:00:01.6]} 46. bxc6
{[%clk 0:01:09.2]} 46... Nxc6 {[%clk 0:00:02.1]} 47. Rc4 {[%clk 0:01:08.6]}
47... Ne7 {[%clk 0:00:01.2]} 48. Bb4 {[%clk 0:01:06.5]} 1-0

[Event "Late-Titled-Tuesday-Blitz-June-25-2024"]
[Site "Chess.com"]
[Date "2024.06.25"]
[Round "8"]
[White "Tigranpatagonian"]
[Black "s-dshubin"]
[Result "1-0"]
[WhiteElo "2459"]
[BlackElo "2321"]
[TimeControl "180+1"]
[EndTime "15:26:35 PDT"]
[Termination "Tigranpatagonian won by checkmate"]

1. d4 {[%clk 0:03:00.9]} 1... d5 {[%clk 0:02:59.1]} 2. c4 {[%clk 0:03:01.1]}
2... e6 {[%clk 0:02:59]} 3. Nc3 {[%clk 0:03:01.1]} 3... Nf6 {[%clk 0:02:58.5]}
4. Bg5 {[%clk 0:03:01.1]} 4... Nbd7 {[%clk 0:02:58.9]} 5. e3 {[%clk 0:02:59.4]}
5... c6 {[%clk 0:02:56.5]} 6. a3 {[%clk 0:02:59.8]} 6... Qa5 {[%clk 0:02:50.4]}
7. b4 {[%clk 0:02:40]} 7... Bxb4 {[%clk 0:02:45.5]} 8. axb4 {[%clk 0:02:39.1]}
8... Qxb4 {[%clk 0:02:46.4]} 9. Qd2 {[%clk 0:02:38.5]} 9... dxc4 {[%clk
0:02:22.3]} 10. Rb1 {[%clk 0:02:36.7]} 10... Qa5 {[%clk 0:02:18.9]} 11. Bxf6
{[%clk 0:02:37.3]} 11... Nxf6 {[%clk 0:02:19.4]} 12. Bxc4 {[%clk 0:02:37.8]}
12... O-O {[%clk 0:02:19.4]} 13. Nf3 {[%clk 0:02:37.4]} 13... b5 {[%clk
0:02:17.5]} 14. Bd3 {[%clk 0:02:32.5]} 14... Qc7 {[%clk 0:02:12]} 15. O-O {[%clk
0:02:30.8]} 15... a5 {[%clk 0:02:11.8]} 16. Rfc1 {[%clk 0:02:29.9]} 16... Qe7
{[%clk 0:02:08.1]} 17. Ne5 {[%clk 0:02:28.8]} 17... Bb7 {[%clk 0:02:08.8]} 18.
Ne4 {[%clk 0:02:27.1]} 18... Nxe4 {[%clk 0:01:53.6]} 19. Bxe4 {[%clk 0:02:26.6]}
19... a4 {[%clk 0:01:54.4]} 20. Bxc6 {[%clk 0:02:23.1]} 20... Bxc6 {[%clk
0:01:53.9]} 21. Nxc6 {[%clk 0:02:22.7]} 21... Qd6 {[%clk 0:01:53.5]} 22. Rxb5
{[%clk 0:02:20.7]} 22... Rfc8 {[%clk 0:01:42.7]} 23. Rbc5 {[%clk 0:02:19.1]}
23... Kf8 {[%clk 0:01:31]} 24. Qc2 {[%clk 0:02:12.2]} 24... a3 {[%clk
0:01:26.4]} 25. Qxh7 {[%clk 0:02:09.1]} 25... f6 {[%clk 0:00:56.8]} 26. Qh8+
{[%clk 0:01:58.1]} 26... Kf7 {[%clk 0:00:57.2]} 27. Ne5+ {[%clk 0:01:46.9]}
27... fxe5 {[%clk 0:00:58.1]} 28. Rxc8 {[%clk 0:01:46]} 28... Ra7 {[%clk
0:00:45.5]} 29. dxe5 {[%clk 0:01:35.4]} 29... Qxe5 {[%clk 0:00:37]} 30. R8c5
{[%clk 0:01:01.9]} 30... Qxc5 {[%clk 0:00:17.8]} 31. Rxc5 {[%clk 0:01:01.3]}
31... a2 {[%clk 0:00:17.7]} 32. Qh5+ {[%clk 0:01:01.1]} 32... Kf8 {[%clk
0:00:15.8]} 33. Rc8+ {[%clk 0:01:00.2]} 33... Ke7 {[%clk 0:00:16.4]} 34. Qg5+
{[%clk 0:00:45.9]} 34... Kf7 {[%clk 0:00:15.3]} 35. Qf4+ {[%clk 0:00:44.6]}
35... Ke7 {[%clk 0:00:15]} 36. Qf8+ {[%clk 0:00:40.2]} 36... Kd7 {[%clk
0:00:14.5]} 37. Rd8+ {[%clk 0:00:38.4]} 37... Kc6 {[%clk 0:00:11.5]} 38. Qd6+
{[%clk 0:00:37.4]} 38... Kb5 {[%clk 0:00:11.5]} 39. Rb8+ {[%clk 0:00:37.2]}
39... Kc4 {[%clk 0:00:11.8]} 40. Rb4+ {[%clk 0:00:36.6]} 40... Kc3 {[%clk
0:00:12.7]} 41. Qd4+ {[%clk 0:00:36.7]} 41... Kc2 {[%clk 0:00:13.6]} 42. Rb2+
{[%clk 0:00:37]} 42... Kc1 {[%clk 0:00:14.5]} 43. Qd2# {[%clk 0:00:37.5]} 1-0

[Event "Late-Titled-Tuesday-Blitz-June-25-2024"]
[Site "Chess.com"]
[Date "2024.06.25"]
[Round "8"]
[White "glucolisis04"]
[Black "tarno17"]
[Result "1-0"]
[WhiteElo "2299"]
[BlackElo "2162"]
[TimeControl "180+1"]
[EndTime "15:26:35 PDT"]
[Termination "glucolisis04 won on time"]

1. d4 {[%clk 0:03:00.9]} 1... d5 {[%clk 0:02:57.2]} 2. c4 {[%clk 0:03:00.7]}
2... e6 {[%clk 0:02:54]} 3. Nc3 {[%clk 0:03:01.2]} 3... Nf6 {[%clk 0:02:53.6]}
4. cxd5 {[%clk 0:03:01.7]} 4... exd5 {[%clk 0:02:51.8]} 5. Bg5 {[%clk
0:03:02.1]} 5... Be7 {[%clk 0:02:51.3]} 6. e3 {[%clk 0:03:02.6]} 6... O-O {[%clk
0:02:51]} 7. Qc2 {[%clk 0:03:03.1]} 7... h6 {[%clk 0:02:51.5]} 8. Bf4 {[%clk
0:03:02.3]} 8... c6 {[%clk 0:02:50.9]} 9. Bd3 {[%clk 0:03:02.5]} 9... Nbd7
{[%clk 0:02:40]} 10. Nf3 {[%clk 0:03:02.8]} 10... Re8 {[%clk 0:02:35.7]} 11. O-O
{[%clk 0:03:03]} 11... Nf8 {[%clk 0:02:36.4]} 12. Rab1 {[%clk 0:03:01.9]} 12...
Ne6 {[%clk 0:02:36.2]} 13. Be5 {[%clk 0:03:00.9]} 13... Bd6 {[%clk 0:02:14.5]}
14. b4 {[%clk 0:03:00]} 14... Ng4 {[%clk 0:01:43.4]} 15. Bxd6 {[%clk 0:02:58.2]}
15... Qxd6 {[%clk 0:01:42.9]} 16. h3 {[%clk 0:02:58.5]} 16... Nf6 {[%clk
0:01:42.2]} 17. Rfc1 {[%clk 0:02:50.1]} 17... Ng5 {[%clk 0:01:37.8]} 18. Ne5
{[%clk 0:02:47]} 18... Nfe4 {[%clk 0:01:05.2]} 19. f4 {[%clk 0:02:38.9]} 19...
Nxc3 {[%clk 0:00:45.1]} 20. Qxc3 {[%clk 0:02:39.8]} 20... Ne4 {[%clk 0:00:42.5]}
21. Bxe4 {[%clk 0:02:31.7]} 21... dxe4 {[%clk 0:00:41.8]} 22. b5 {[%clk
0:02:28.7]} 22... cxb5 {[%clk 0:00:29.7]} 23. Rxb5 {[%clk 0:02:25.9]} 23... Bd7
{[%clk 0:00:29.7]} 24. Rxb7 {[%clk 0:02:14.1]} 24... Rac8 {[%clk 0:00:25.1]} 25.
Rc7 {[%clk 0:02:13.9]} 25... Be6 {[%clk 0:00:14.7]} 26. Qc5 {[%clk 0:02:07.9]}
26... Qa6 {[%clk 0:00:10.5]} 27. Qb4 {[%clk 0:01:51.3]} 27... Rxc7 {[%clk
0:00:09.9]} 28. Rxc7 {[%clk 0:01:51.8]} 28... Qxa2 {[%clk 0:00:10.1]} 29. Qb7
{[%clk 0:01:47.5]} 29... Rf8 {[%clk 0:00:08.4]} 30. Qxa7 {[%clk 0:01:47.2]}
30... Qb1+ {[%clk 0:00:08.6]} 31. Kh2 {[%clk 0:01:45.4]} 31... Qe1 {[%clk
0:00:07.4]} 32. Qa3 {[%clk 0:01:41.2]} 32... Qf2 {[%clk 0:00:05.7]} 33. Rc5
{[%clk 0:01:28.3]} 33... Rb8 {[%clk 0:00:05.4]} 34. Rc1 {[%clk 0:01:20]} 34...
Kh7 {[%clk 0:00:04.9]} 35. Qc3 {[%clk 0:01:14.8]} 35... Qh4 {[%clk 0:00:04.2]}
36. Qd2 {[%clk 0:01:12.4]} 36... Ra8 {[%clk 0:00:03.6]} 37. Qe2 {[%clk
0:01:05.3]} 37... Ra2 {[%clk 0:00:03.3]} 38. Rc2 {[%clk 0:01:03]} 38... Ra1
{[%clk 0:00:01.8]} 39. d5 {[%clk 0:00:59.3]} 39... Bxd5 {[%clk 0:00:01.8]} 40.
g3 {[%clk 0:00:59.3]} 40... Qf6 {[%clk 0:00:01.4]} 41. Rd2 {[%clk 0:00:56]}
41... Be6 {[%clk 0:00:01.1]} 42. Rd1 {[%clk 0:00:50.2]} 1-0

[Event "Late-Titled-Tuesday-Blitz-June-25-2024"]
[Site "Chess.com"]
[Date "2024.06.25"]
[Round "8"]
[White "VaglioSagan"]
[Black "egnfanclub"]
[Result "0-1"]
[WhiteElo "2532"]
[BlackElo "2388"]
[TimeControl "180+1"]
[EndTime "15:26:36 PDT"]
[Termination "egnfanclub won by checkmate"]

1. d4 {[%clk 0:02:53.7]} 1... d5 {[%clk 0:02:59.5]} 2. c4 {[%clk 0:02:53.9]}
2... c6 {[%clk 0:02:59.7]} 3. Nc3 {[%clk 0:02:53.9]} 3... Nf6 {[%clk 0:03:00]}
4. e3 {[%clk 0:02:51.4]} 4... e6 {[%clk 0:02:58.8]} 5. Nf3 {[%clk 0:02:51.7]}
5... Nbd7 {[%clk 0:02:58.5]} 6. b3 {[%clk 0:02:49.8]} 6... Bb4 {[%clk 0:02:51]}
7. Bd2 {[%clk 0:02:50.1]} 7... O-O {[%clk 0:02:38.3]} 8. Bd3 {[%clk 0:02:47.7]}
8... Qe7 {[%clk 0:02:28.6]} 9. O-O {[%clk 0:02:46.2]} 9... e5 {[%clk 0:02:24.1]}
10. dxe5 {[%clk 0:02:01.9]} 10... Nxe5 {[%clk 0:02:25]} 11. Nxe5 {[%clk
0:02:01.9]} 11... Qxe5 {[%clk 0:02:24]} 12. Nxd5 {[%clk 0:01:48.6]} 12... Nxd5
{[%clk 0:02:00.6]} 13. cxd5 {[%clk 0:01:45.7]} 13... Bxd2 {[%clk 0:02:00.8]} 14.
Qxd2 {[%clk 0:01:40.7]} 14... Qxd5 {[%clk 0:02:00.7]} 15. Qc2 {[%clk 0:01:40.3]}
15... Qh5 {[%clk 0:01:58.7]} 16. Rad1 {[%clk 0:01:10.7]} 16... Be6 {[%clk
0:01:58.1]} 17. Bc4 {[%clk 0:01:07.6]} 17... Rfe8 {[%clk 0:01:40.3]} 18. Bxe6
{[%clk 0:00:55.7]} 18... Rxe6 {[%clk 0:01:41.2]} 19. Rd7 {[%clk 0:00:47.5]}
19... Rh6 {[%clk 0:01:33.3]} 20. h3 {[%clk 0:00:46.2]} 20... Qg5 {[%clk
0:01:21.5]} 21. Qd3 {[%clk 0:00:28.2]} 21... Rxh3 {[%clk 0:01:11.1]} 22. Rd1
{[%clk 0:00:17.3]} 22... Rf8 {[%clk 0:01:10.4]} 23. Rd8 {[%clk 0:00:11.5]} 23...
Rh6 {[%clk 0:01:00.7]} 24. Rxf8+ {[%clk 0:00:07.9]} 24... Kxf8 {[%clk
0:01:01.6]} 25. Qd7 {[%clk 0:00:06.5]} 25... g6 {[%clk 0:00:58]} 26. Qc8+ {[%clk
0:00:04.8]} 26... Kg7 {[%clk 0:00:57.9]} 27. Rd8 {[%clk 0:00:03.2]} 27... Qa5
{[%clk 0:00:32.1]} 28. Rg8+ {[%clk 0:00:03.6]} 28... Kf6 {[%clk 0:00:31.4]} 29.
g4 {[%clk 0:00:01.4]} 29... Qe1+ {[%clk 0:00:29.2]} 30. Kg2 {[%clk 0:00:02.1]}
30... Qh1+ {[%clk 0:00:27.7]} 31. Kg3 {[%clk 0:00:02.8]} 31... Rh3+ {[%clk
0:00:24.7]} 32. Kf4 {[%clk 0:00:03]} 32... Qf3# {[%clk 0:00:23.6]} 0-1